[Event "Titled Tuesday Blitz August 16 Late 2022"]
[White "Putnam, Liam"]
[Black "Melkumyan, Hrant"]
[WhiteFideId "30938279"]
[BlackFideId "13302485"]
[WhiteElo "2035"]
[BlackElo "2604"]
[Result "1-0"]
[Round "05"]
[TimeControl "180+1"]
[Date "2022.08.18"]
[WhiteClock "0:00:00"]
[BlackClock "0:00:00"]

1. e4 {[%clk 0:00:00]}  e6 {[%clk 0:00:00]} 2. d4 {[%clk 0:00:00]}  d5 {[%clk 0:00:00]} 3. Nd2 {[%clk 0:00:00]}  c5 {[%clk 0:00:00]} 4. Ngf3 {[%clk 0:00:00]}  cxd4 {[%clk 0:00:00]} 5. Nxd4 {[%clk 0:00:00]}  Nf6 {[%clk 0:00:00]} 6. exd5 {[%clk 0:00:00]}  Qxd5 {[%clk 0:00:00]} 7. c3 {[%clk 0:00:00]}  Nbd7 {[%clk 0:00:00]} 8. Nb5 {[%clk 0:00:00]}  Qc6 {[%clk 0:00:00]} 9. Nc4 {[%clk 0:00:00]}  Nd5 {[%clk 0:00:00]} 10. Qh5 {[%clk 0:00:00]}  a6 {[%clk 0:00:00]} 11. Nd4 {[%clk 0:00:00]}  N7f6 {[%clk 0:00:00]} 12. Qe5 {[%clk 0:00:00]}  Qc7 {[%clk 0:00:00]} 13. Qxc7 {[%clk 0:00:00]}  Nxc7 {[%clk 0:00:00]} 14. Nb6 {[%clk 0:00:00]}  Rb8 {[%clk 0:00:00]} 15. Bf4 {[%clk 0:00:00]}  Kd8 {[%clk 0:00:00]} 16. O-O-O {[%clk 0:00:00]}  Bd7 {[%clk 0:00:00]} 17. Be5 {[%clk 0:00:00]}  Nfd5 {[%clk 0:00:00]} 18. Nxd7 {[%clk 0:00:00]}  Kxd7 {[%clk 0:00:00]} 19. c4 {[%clk 0:00:00]}  f6 {[%clk 0:00:00]} 20. Bg3 {[%clk 0:00:00]}  e5 {[%clk 0:00:00]} 21. Nb3 {[%clk 0:00:00]}  h5 {[%clk 0:00:00]} 22. h4 {[%clk 0:00:00]}  a5 {[%clk 0:00:00]} 23. cxd5 {[%clk 0:00:00]}  a4 {[%clk 0:00:00]} 24. Nd2 {[%clk 0:00:00]}  a3 {[%clk 0:00:00]} 25. b3 {[%clk 0:00:00]}  Nxd5 {[%clk 0:00:00]} 26. Ne4 {[%clk 0:00:00]}  Kc6 {[%clk 0:00:00]} 27. Bb5+ {[%clk 0:00:00]}  Kxb5 {[%clk 0:00:00]} 28. Rxd5+ {[%clk 0:00:00]}  Kc6 {[%clk 0:00:00]} 29. Rhd1 {[%clk 0:00:00]}  Bb4 {[%clk 0:00:00]} 30. Kb1 {[%clk 0:00:00]}  Rbc8 {[%clk 0:00:00]} 31. f4 {[%clk 0:00:00]}  exf4 {[%clk 0:00:00]} 32. Bxf4 {[%clk 0:00:00]}  Rhe8 {[%clk 0:00:00]} 33. Ng3 {[%clk 0:00:00]}  g6 {[%clk 0:00:00]} 34. R5d4 {[%clk 0:00:00]}  Bf8 {[%clk 0:00:00]} 35. Ne4 {[%clk 0:00:00]}  f5 {[%clk 0:00:00]} 36. Nd6 {[%clk 0:00:00]}  Bxd6 {[%clk 0:00:00]} 37. Rxd6+ {[%clk 0:00:00]}  Kb5 {[%clk 0:00:00]} 38. R1d5+ {[%clk 0:00:00]}  Rc5 {[%clk 0:00:00]} 39. Rxc5+ {[%clk 0:00:00]}  Kxc5 {[%clk 0:00:00]} 40. Rxg6 {[%clk 0:00:00]}  Re2 {[%clk 0:00:00]} 41. Bc1 {[%clk 0:00:00]}  Kb4 {[%clk 0:00:00]} 42. g3 {[%clk 0:00:00]}  Rg2 {[%clk 0:00:00]} 43. Rg5 {[%clk 0:00:00]}  b5 {[%clk 0:00:00]} 44. Rxh5 {[%clk 0:00:00]}  Rxg3 {[%clk 0:00:00]} 45. Rxf5 {[%clk 0:00:00]}  Rh3 {[%clk 0:00:00]} 46. h5 {[%clk 0:00:00]}  Rxh5 {[%clk 0:00:00]} 47. Rxh5 {[%clk 0:00:00]} 1-0


[Site "https://www.chess.com"]

[Event "Titled Tuesday Blitz August 16 Late 2022"]
[White "Quirke, Jeffrey"]
[Black "Kujawski, Adam"]
[WhiteFideId "2013029"]
[BlackFideId "1100920"]
[WhiteElo "2048"]
[BlackElo "1972"]
[Result "0-1"]
[Round "05"]
[TimeControl "180+1"]
[Date "2022.08.18"]
[WhiteClock "0:00:00"]
[BlackClock "0:00:00"]

1. d4 {[%clk 0:00:00]}  Nf6 {[%clk 0:00:00]} 2. c4 {[%clk 0:00:00]}  e6 {[%clk 0:00:00]} 3. Nc3 {[%clk 0:00:00]}  Bb4 {[%clk 0:00:00]} 4. e3 {[%clk 0:00:00]}  c5 {[%clk 0:00:00]} 5. Ne2 {[%clk 0:00:00]}  b6 {[%clk 0:00:00]} 6. a3 {[%clk 0:00:00]}  Ba5 {[%clk 0:00:00]} 7. g3 {[%clk 0:00:00]}  Bb7 {[%clk 0:00:00]} 8. d5 {[%clk 0:00:00]}  exd5 {[%clk 0:00:00]} 9. Bg2 {[%clk 0:00:00]}  b5 {[%clk 0:00:00]} 10. cxd5 {[%clk 0:00:00]}  d6 {[%clk 0:00:00]} 11. O-O {[%clk 0:00:00]}  a6 {[%clk 0:00:00]} 12. Nf4 {[%clk 0:00:00]}  O-O {[%clk 0:00:00]} 13. Rb1 {[%clk 0:00:00]}  Bb6 {[%clk 0:00:00]} 14. b4 {[%clk 0:00:00]}  c4 {[%clk 0:00:00]} 15. Bb2 {[%clk 0:00:00]}  Nbd7 {[%clk 0:00:00]} 16. Nce2 {[%clk 0:00:00]}  Re8 {[%clk 0:00:00]} 17. Bd4 {[%clk 0:00:00]}  Ne5 {[%clk 0:00:00]} 18. h4 {[%clk 0:00:00]}  Rc8 {[%clk 0:00:00]} 19. Nc3 {[%clk 0:00:00]}  h6 {[%clk 0:00:00]} 20. h5 {[%clk 0:00:00]}  Qc7 {[%clk 0:00:00]} 21. a4 {[%clk 0:00:00]}  Bxd4 {[%clk 0:00:00]} 22. Qxd4 {[%clk 0:00:00]}  bxa4 {[%clk 0:00:00]} 23. Rfc1 {[%clk 0:00:00]}  a3 {[%clk 0:00:00]} 24. Ra1 {[%clk 0:00:00]}  Nd3 {[%clk 0:00:00]} 25. Nxd3 {[%clk 0:00:00]}  cxd3 {[%clk 0:00:00]} 26. Qxd3 {[%clk 0:00:00]}  Qb6 {[%clk 0:00:00]} 27. Rcb1 {[%clk 0:00:00]}  Nxh5 {[%clk 0:00:00]} 28. Rxa3 {[%clk 0:00:00]}  Nf6 {[%clk 0:00:00]} 29. b5 {[%clk 0:00:00]}  Qc5 {[%clk 0:00:00]} 30. bxa6 {[%clk 0:00:00]}  Qxa3 {[%clk 0:00:00]} 31. axb7 {[%clk 0:00:00]}  Rb8 {[%clk 0:00:00]} 32. Qd2 {[%clk 0:00:00]}  Qc5 {[%clk 0:00:00]} 33. Na4 {[%clk 0:00:00]}  Qc7 {[%clk 0:00:00]} 34. Qb4 {[%clk 0:00:00]}  Re7 {[%clk 0:00:00]} 35. e4 {[%clk 0:00:00]}  Rxb7 {[%clk 0:00:00]} 36. Qxb7 {[%clk 0:00:00]}  Qxb7 {[%clk 0:00:00]} 37. Rxb7 {[%clk 0:00:00]}  Rxb7 {[%clk 0:00:00]} 38. Nc3 {[%clk 0:00:00]}  Rb3 {[%clk 0:00:00]} 39. Ne2 {[%clk 0:00:00]}  Rb1+ {[%clk 0:00:00]} 40. Kh2 {[%clk 0:00:00]}  Re1 {[%clk 0:00:00]} 41. Bf3 {[%clk 0:00:00]}  g6 {[%clk 0:00:00]} 42. Kg2 {[%clk 0:00:00]}  Nd7 {[%clk 0:00:00]} 43. Nf4 {[%clk 0:00:00]}  Ne5 {[%clk 0:00:00]} 44. Nh3 {[%clk 0:00:00]}  Ra1 {[%clk 0:00:00]} 45. Ng1 {[%clk 0:00:00]}  Ra2 {[%clk 0:00:00]} 0-1


[Site "https://www.chess.com"]

[Event "Titled Tuesday Blitz August 16 Late 2022"]
[White "Rasulov, Vugar"]
[Black "Andreikin, Dmitry"]
[WhiteFideId "13402390"]
[BlackFideId "4158814"]
[WhiteElo "2509"]
[BlackElo "2736"]
[Result "1/2-1/2"]
[Round "05"]
[TimeControl "180+1"]
[Date "2022.08.16"]
[WhiteClock "0:01:49"]
[BlackClock "0:01:11"]

1. d4 {[%clk 0:03:00]}  d5 {[%clk 0:03:00]} 2. c4 {[%clk 0:03:01]}  e6 {[%clk 0:03:00]} 3. Nf3 {[%clk 0:03:01]}  Nf6 {[%clk 0:03:00]} 4. Nc3 {[%clk 0:03:00]}  a6 {[%clk 0:02:57]} 5. e3 {[%clk 0:02:58]}  dxc4 {[%clk 0:02:51]} 6. a4 {[%clk 0:02:57]}  c5 {[%clk 0:02:51]} 7. Bxc4 {[%clk 0:02:57]}  Nc6 {[%clk 0:02:51]} 8. O-O {[%clk 0:02:57]}  Be7 {[%clk 0:02:51]} 9. Qe2 {[%clk 0:02:55]}  cxd4 {[%clk 0:02:50]} 10. Rd1 {[%clk 0:02:55]}  e5 {[%clk 0:02:50]} 11. exd4 {[%clk 0:02:55]}  exd4 {[%clk 0:02:50]} 12. Nxd4 {[%clk 0:02:55]}  Nxd4 {[%clk 0:02:50]} 13. Qe5 {[%clk 0:02:56]}  Qd6 {[%clk 0:02:40]} 14. Qxd6 {[%clk 0:02:56]}  Bxd6 {[%clk 0:02:41]} 15. Rxd4 {[%clk 0:02:56]}  Bc5 {[%clk 0:02:32]} 16. Rd1 {[%clk 0:02:36]}  O-O {[%clk 0:02:30]} 17. h3 {[%clk 0:02:30]}  Re8 {[%clk 0:02:16]} 18. Bg5 {[%clk 0:02:21]}  Be6 {[%clk 0:02:16]} 19. Bxe6 {[%clk 0:02:17]}  Rxe6 {[%clk 0:02:16]} 20. Bxf6 {[%clk 0:02:17]}  Rxf6 {[%clk 0:02:14]} 21. Ne4 {[%clk 0:02:17]}  Rc6 {[%clk 0:02:15]} 22. Nxc5 {[%clk 0:02:02]}  Rxc5 {[%clk 0:02:16]} 23. Rac1 {[%clk 0:02:01]}  Rxc1 {[%clk 0:01:35]} 24. Rxc1 {[%clk 0:02:02]}  g5 {[%clk 0:01:24]} 25. Rc7 {[%clk 0:01:58]}  b5 {[%clk 0:01:24]} 26. a5 {[%clk 0:01:54]}  Rd8 {[%clk 0:01:19]} 27. Rc5 {[%clk 0:01:49]}  h6 {[%clk 0:01:11]} 28. Rc6 {[%clk 0:01:49]}  Kg7 {[%clk 0:01:11]} 1/2-1/2


[Site "https://www.chess.com"]

[Event "Titled Tuesday Blitz August 16 Late 2022"]
[White "Reprintsev, Alexander"]
[Black "Sourath Biswas"]
[WhiteFideId "14100541"]
[BlackFideId "35091484"]
[WhiteElo "2108"]
[BlackElo "1777"]
[Result "0-1"]
[Round "05"]
[TimeControl "180+1"]
[Date "2022.08.18"]
[WhiteClock "0:00:00"]
[BlackClock "0:00:00"]

1. e4 {[%clk 0:00:00]}  c6 {[%clk 0:00:00]} 2. Nc3 {[%clk 0:00:00]}  d5 {[%clk 0:00:00]} 3. Nf3 {[%clk 0:00:00]}  Bg4 {[%clk 0:00:00]} 4. h3 {[%clk 0:00:00]}  Bc8 {[%clk 0:00:00]} 5. d4 {[%clk 0:00:00]}  dxe4 {[%clk 0:00:00]} 6. Nxe4 {[%clk 0:00:00]}  Nf6 {[%clk 0:00:00]} 7. Qe2 {[%clk 0:00:00]}  Bf5 {[%clk 0:00:00]} 8. Nxf6+ {[%clk 0:00:00]}  gxf6 {[%clk 0:00:00]} 9. g4 {[%clk 0:00:00]}  Be6 {[%clk 0:00:00]} 10. Bd2 {[%clk 0:00:00]}  Qb6 {[%clk 0:00:00]} 11. b3 {[%clk 0:00:00]}  h5 {[%clk 0:00:00]} 12. g5 {[%clk 0:00:00]}  fxg5 {[%clk 0:00:00]} 13. Nxg5 {[%clk 0:00:00]}  Bd5 {[%clk 0:00:00]} 14. Rg1 {[%clk 0:00:00]}  Qxd4 {[%clk 0:00:00]} 15. c3 {[%clk 0:00:00]}  Qf6 {[%clk 0:00:00]} 16. O-O-O {[%clk 0:00:00]}  Bh6 {[%clk 0:00:00]} 17. f4 {[%clk 0:00:00]}  Nd7 {[%clk 0:00:00]} 18. Kb1 {[%clk 0:00:00]}  O-O-O {[%clk 0:00:00]} 19. c4 {[%clk 0:00:00]}  Bg7 {[%clk 0:00:00]} 0-1


[Site "https://www.chess.com"]

[Event "Titled Tuesday Blitz August 16 Late 2022"]
[White "Riehle, Marco"]
[Black "Koepke, Christian"]
[WhiteFideId "12904392"]
[BlackFideId "4655737"]
[WhiteElo "2462"]
[BlackElo "2188"]
[Result "1-0"]
[Round "05"]
[TimeControl "180+1"]
[Date "2022.08.16"]
[WhiteClock "0:00:55"]
[BlackClock "0:00:02"]

1. e4 {[%clk 0:03:00]}  c6 {[%clk 0:02:59]} 2. c4 {[%clk 0:02:59]}  d5 {[%clk 0:02:59]} 3. cxd5 {[%clk 0:03:00]}  cxd5 {[%clk 0:02:59]} 4. exd5 {[%clk 0:03:01]}  Nf6 {[%clk 0:02:59]} 5. Nc3 {[%clk 0:03:02]}  Nxd5 {[%clk 0:02:58]} 6. Nf3 {[%clk 0:03:02]}  e6 {[%clk 0:02:58]} 7. d4 {[%clk 0:03:01]}  Be7 {[%clk 0:02:58]} 8. Bd3 {[%clk 0:03:01]}  O-O {[%clk 0:02:58]} 9. O-O {[%clk 0:03:02]}  Nf6 {[%clk 0:02:58]} 10. Ne5 {[%clk 0:03:00]}  Nc6 {[%clk 0:02:56]} 11. Nxc6 {[%clk 0:03:00]}  bxc6 {[%clk 0:02:57]} 12. Qf3 {[%clk 0:03:00]}  Qb6 {[%clk 0:02:26]} 13. Bg5 {[%clk 0:02:53]}  Ba6 {[%clk 0:02:13]} 14. Bxa6 {[%clk 0:02:43]}  Qxa6 {[%clk 0:02:14]} 15. Rac1 {[%clk 0:02:40]}  Rfc8 {[%clk 0:01:52]} 16. Rfd1 {[%clk 0:02:36]}  h6 {[%clk 0:01:50]} 17. Bh4 {[%clk 0:02:34]}  Qb7 {[%clk 0:01:46]} 18. b3 {[%clk 0:02:33]}  Nd5 {[%clk 0:01:46]} 19. Nxd5 {[%clk 0:02:29]}  cxd5 {[%clk 0:01:38]} 20. Bxe7 {[%clk 0:02:28]}  Qxe7 {[%clk 0:01:39]} 21. Qe2 {[%clk 0:02:18]}  Rc7 {[%clk 0:01:33]} 22. Rxc7 {[%clk 0:02:13]}  Qxc7 {[%clk 0:01:33]} 23. h3 {[%clk 0:02:12]}  Rc8 {[%clk 0:01:30]} 24. Rd2 {[%clk 0:02:09]}  Qc1+ {[%clk 0:01:26]} 25. Kh2 {[%clk 0:02:08]}  Rc3 {[%clk 0:01:18]} 26. g3 {[%clk 0:01:59]}  Qb1 {[%clk 0:01:06]} 27. Rb2 {[%clk 0:01:42]}  Qa1 {[%clk 0:00:59]} 28. Rc2 {[%clk 0:01:41]}  Rxc2 {[%clk 0:00:58]} 29. Qxc2 {[%clk 0:01:42]}  Qxd4 {[%clk 0:00:58]} 30. h4 {[%clk 0:01:38]}  h5 {[%clk 0:00:53]} 31. Kg1 {[%clk 0:01:37]}  g6 {[%clk 0:00:52]} 32. a4 {[%clk 0:01:35]}  Qb4 {[%clk 0:00:48]} 33. Qc8+ {[%clk 0:01:30]}  Kg7 {[%clk 0:00:48]} 34. Qa6 {[%clk 0:01:30]}  Qc5 {[%clk 0:00:40]} 35. b4 {[%clk 0:01:25]}  Qxb4 {[%clk 0:00:38]} 36. Qxa7 {[%clk 0:01:26]}  d4 {[%clk 0:00:33]} 37. Qd7 {[%clk 0:01:26]}  e5 {[%clk 0:00:29]} 38. Kg2 {[%clk 0:01:15]}  e4 {[%clk 0:00:27]} 39. Qd5 {[%clk 0:01:12]}  d3 {[%clk 0:00:25]} 40. a5 {[%clk 0:01:11]}  d2 {[%clk 0:00:23]} 41. a6 {[%clk 0:01:11]}  e3 {[%clk 0:00:13]} 42. a7 {[%clk 0:01:02]}  e2 {[%clk 0:00:13]} 43. Qe5+ {[%clk 0:00:57]}  f6 {[%clk 0:00:11]} 44. Qc7+ {[%clk 0:00:56]}  Kh6 {[%clk 0:00:08]} 45. a8=Q {[%clk 0:00:57]}  Qe4+ {[%clk 0:00:02]} 46. Qxe4 {[%clk 0:00:55]}  e1=Q {[%clk 0:00:01]} 47. Qef4+ {[%clk 0:00:55]}  g5 {[%clk 0:00:02]} 48. Qxf6# {[%clk 0:00:55]} 1-0


[Site "https://www.chess.com"]

[Event "Titled Tuesday Blitz August 16 Late 2022"]
[White "Romero Ruscalleda, Josep"]
[Black "Kopczynski, Michal"]
[WhiteFideId "2231859"]
[BlackFideId "1124200"]
[WhiteElo "2193"]
[BlackElo "2235"]
[Result "0-1"]
[Round "05"]
[TimeControl "180+1"]
[Date "2022.08.18"]
[WhiteClock "0:00:00"]
[BlackClock "0:00:00"]

1. e4 {[%clk 0:00:00]}  c5 {[%clk 0:00:00]} 2. c3 {[%clk 0:00:00]}  d6 {[%clk 0:00:00]} 3. d4 {[%clk 0:00:00]}  cxd4 {[%clk 0:00:00]} 4. cxd4 {[%clk 0:00:00]}  g6 {[%clk 0:00:00]} 5. Nf3 {[%clk 0:00:00]}  Bg7 {[%clk 0:00:00]} 6. Nc3 {[%clk 0:00:00]}  Nf6 {[%clk 0:00:00]} 7. Bd3 {[%clk 0:00:00]}  O-O {[%clk 0:00:00]} 8. Be3 {[%clk 0:00:00]}  Nc6 {[%clk 0:00:00]} 9. Rc1 {[%clk 0:00:00]}  e5 {[%clk 0:00:00]} 10. d5 {[%clk 0:00:00]}  Ne7 {[%clk 0:00:00]} 11. O-O {[%clk 0:00:00]}  h6 {[%clk 0:00:00]} 12. Nd2 {[%clk 0:00:00]}  Ng4 {[%clk 0:00:00]} 13. Qe2 {[%clk 0:00:00]}  f5 {[%clk 0:00:00]} 14. f3 {[%clk 0:00:00]}  Nxe3 {[%clk 0:00:00]} 15. Qxe3 {[%clk 0:00:00]}  f4 {[%clk 0:00:00]} 16. Qf2 {[%clk 0:00:00]}  g5 {[%clk 0:00:00]} 17. Nb5 {[%clk 0:00:00]}  g4 {[%clk 0:00:00]} 18. fxg4 {[%clk 0:00:00]}  Bxg4 {[%clk 0:00:00]} 19. Nxa7 {[%clk 0:00:00]}  Ng6 {[%clk 0:00:00]} 20. a3 {[%clk 0:00:00]}  f3 {[%clk 0:00:00]} 21. gxf3 {[%clk 0:00:00]}  Bh3 {[%clk 0:00:00]} 22. Rfe1 {[%clk 0:00:00]}  Nf4 {[%clk 0:00:00]} 23. Bf1 {[%clk 0:00:00]}  Bxf1 {[%clk 0:00:00]} 24. Kxf1 {[%clk 0:00:00]}  Nd3 {[%clk 0:00:00]} 25. Qe3 {[%clk 0:00:00]}  Nxe1 {[%clk 0:00:00]} 26. Kxe1 {[%clk 0:00:00]}  Qh4+ {[%clk 0:00:00]} 27. Kd1 {[%clk 0:00:00]}  Qxh2 {[%clk 0:00:00]} 28. Nb5 {[%clk 0:00:00]}  Rad8 {[%clk 0:00:00]} 29. Nc7 {[%clk 0:00:00]}  Rc8 {[%clk 0:00:00]} 30. Rc3 {[%clk 0:00:00]}  Bf6 {[%clk 0:00:00]} 31. Ne6 {[%clk 0:00:00]}  Rxc3 {[%clk 0:00:00]} 32. Qxc3 {[%clk 0:00:00]}  Rf7 {[%clk 0:00:00]} 33. Qc8+ {[%clk 0:00:00]}  Kh7 {[%clk 0:00:00]} 34. Qe8 {[%clk 0:00:00]}  Qh5 {[%clk 0:00:00]} 35. Nf8+ {[%clk 0:00:00]}  Kg7 {[%clk 0:00:00]} 36. Ne6+ {[%clk 0:00:00]}  Kg6 {[%clk 0:00:00]} 37. Qg8+ {[%clk 0:00:00]}  Bg7 {[%clk 0:00:00]} 38. Nd8 {[%clk 0:00:00]}  Qh1+ {[%clk 0:00:00]} 39. Kc2 {[%clk 0:00:00]}  Rc7+ {[%clk 0:00:00]} 40. Kd3 {[%clk 0:00:00]}  Re7 {[%clk 0:00:00]} 41. Ne6 {[%clk 0:00:00]}  Qg1 {[%clk 0:00:00]} 42. Qd8 {[%clk 0:00:00]}  Bf6 {[%clk 0:00:00]} 43. Qxd6 {[%clk 0:00:00]}  h5 {[%clk 0:00:00]} 44. Nf8+ {[%clk 0:00:00]}  Kf7 {[%clk 0:00:00]} 45. Nd7 {[%clk 0:00:00]}  Qg5 {[%clk 0:00:00]} 46. Nc5 {[%clk 0:00:00]}  h4 {[%clk 0:00:00]} 47. Ne6 {[%clk 0:00:00]}  Qg1 {[%clk 0:00:00]} 48. Nd8+ {[%clk 0:00:00]}  Kg6 {[%clk 0:00:00]} 49. f4 {[%clk 0:00:00]}  h3 {[%clk 0:00:00]} 50. f5+ {[%clk 0:00:00]}  Kg5 {[%clk 0:00:00]} 51. Ne6+ {[%clk 0:00:00]}  Kh4 {[%clk 0:00:00]} 52. Qd8 {[%clk 0:00:00]}  h2 {[%clk 0:00:00]} 53. Nf3+ {[%clk 0:00:00]}  Kg3 {[%clk 0:00:00]} 54. Nxg1 {[%clk 0:00:00]}  hxg1=Q {[%clk 0:00:00]} 55. Qg8+ {[%clk 0:00:00]}  Kf2 {[%clk 0:00:00]} 56. Qxg1+ {[%clk 0:00:00]}  Kxg1 {[%clk 0:00:00]} 57. Kc4 {[%clk 0:00:00]}  Kf2 {[%clk 0:00:00]} 58. d6 {[%clk 0:00:00]}  Rd7 {[%clk 0:00:00]} 59. Kd5 {[%clk 0:00:00]}  Be7 {[%clk 0:00:00]} 60. Kxe5 {[%clk 0:00:00]}  Bxd6+ {[%clk 0:00:00]} 61. Kf6 {[%clk 0:00:00]}  Ke3 {[%clk 0:00:00]} 62. e5 {[%clk 0:00:00]}  Bc7 {[%clk 0:00:00]} 0-1


[Site "https://www.chess.com"]

[Event "Titled Tuesday Blitz August 16 Late 2022"]
[White "Rosenberg, Evan S"]
[Black "Diem, Thomas"]
[WhiteFideId "2019299"]
[BlackFideId "30937841"]
[WhiteElo "1999"]
[BlackElo "1998"]
[Result "0-1"]
[Round "05"]
[TimeControl "180+1"]
[Date "2022.08.18"]
[WhiteClock "0:00:00"]
[BlackClock "0:00:00"]

1. e4 {[%clk 0:00:00]}  c5 {[%clk 0:00:00]} 2. Nc3 {[%clk 0:00:00]}  e6 {[%clk 0:00:00]} 3. Nge2 {[%clk 0:00:00]}  Nc6 {[%clk 0:00:00]} 4. g3 {[%clk 0:00:00]}  Nf6 {[%clk 0:00:00]} 5. Bg2 {[%clk 0:00:00]}  d5 {[%clk 0:00:00]} 6. exd5 {[%clk 0:00:00]}  exd5 {[%clk 0:00:00]} 7. d4 {[%clk 0:00:00]}  Be6 {[%clk 0:00:00]} 8. O-O {[%clk 0:00:00]}  Bd6 {[%clk 0:00:00]} 9. dxc5 {[%clk 0:00:00]}  Bxc5 {[%clk 0:00:00]} 10. Bg5 {[%clk 0:00:00]}  O-O {[%clk 0:00:00]} 11. Nf4 {[%clk 0:00:00]}  d4 {[%clk 0:00:00]} 12. Ne4 {[%clk 0:00:00]}  Be7 {[%clk 0:00:00]} 13. Bxf6 {[%clk 0:00:00]}  Bxf6 {[%clk 0:00:00]} 14. Nc5 {[%clk 0:00:00]}  Qe7 {[%clk 0:00:00]} 15. Ncxe6 {[%clk 0:00:00]}  fxe6 {[%clk 0:00:00]} 16. Re1 {[%clk 0:00:00]}  e5 {[%clk 0:00:00]} 17. Qh5 {[%clk 0:00:00]}  g6 {[%clk 0:00:00]} 18. Bd5+ {[%clk 0:00:00]}  Kg7 {[%clk 0:00:00]} 19. Qh3 {[%clk 0:00:00]}  Nd8 {[%clk 0:00:00]} 20. Rad1 {[%clk 0:00:00]}  Qd6 {[%clk 0:00:00]} 21. Ne6+ {[%clk 0:00:00]}  Nxe6 {[%clk 0:00:00]} 22. Bxe6 {[%clk 0:00:00]}  Rfe8 {[%clk 0:00:00]} 23. Bc4 {[%clk 0:00:00]}  e4 {[%clk 0:00:00]} 24. Bf1 {[%clk 0:00:00]}  Qc5 {[%clk 0:00:00]} 25. c3 {[%clk 0:00:00]}  d3 {[%clk 0:00:00]} 26. Bg2 {[%clk 0:00:00]}  e3 {[%clk 0:00:00]} 27. fxe3 {[%clk 0:00:00]}  Rxe3 {[%clk 0:00:00]} 28. Rxe3 {[%clk 0:00:00]}  Qxe3+ {[%clk 0:00:00]} 29. Kh1 {[%clk 0:00:00]}  Rd8 {[%clk 0:00:00]} 30. g4 {[%clk 0:00:00]}  Qe2 {[%clk 0:00:00]} 31. Qf3 {[%clk 0:00:00]}  Qxf3 {[%clk 0:00:00]} 32. Bxf3 {[%clk 0:00:00]}  d2 {[%clk 0:00:00]} 33. Kg2 {[%clk 0:00:00]}  Bg5 {[%clk 0:00:00]} 34. Kg3 {[%clk 0:00:00]}  b6 {[%clk 0:00:00]} 35. h4 {[%clk 0:00:00]}  Be3 {[%clk 0:00:00]} 36. c4 {[%clk 0:00:00]}  h6 {[%clk 0:00:00]} 37. Bd5 {[%clk 0:00:00]}  g5 {[%clk 0:00:00]} 38. hxg5 {[%clk 0:00:00]}  hxg5 {[%clk 0:00:00]} 39. Kf3 {[%clk 0:00:00]}  Bf4 {[%clk 0:00:00]} 40. b3 {[%clk 0:00:00]}  Kf6 {[%clk 0:00:00]} 41. Ke4 {[%clk 0:00:00]}  Re8+ {[%clk 0:00:00]} 42. Kd3 {[%clk 0:00:00]}  Re1 {[%clk 0:00:00]} 43. Kc2 {[%clk 0:00:00]}  Ke5 {[%clk 0:00:00]} 44. Bf3 {[%clk 0:00:00]}  Kd4 {[%clk 0:00:00]} 45. a4 {[%clk 0:00:00]}  Ke3 {[%clk 0:00:00]} 46. Bd5 {[%clk 0:00:00]}  a5 {[%clk 0:00:00]} 47. Be6 {[%clk 0:00:00]}  Kf2 {[%clk 0:00:00]} 48. Bf5 {[%clk 0:00:00]}  Ke2 {[%clk 0:00:00]} 49. Bd3+ {[%clk 0:00:00]}  Kf3 {[%clk 0:00:00]} 50. Bf5 {[%clk 0:00:00]}  Kg3 {[%clk 0:00:00]} 51. Bd7 {[%clk 0:00:00]}  Kf3 {[%clk 0:00:00]} 52. Bf5 {[%clk 0:00:00]}  Kg2 {[%clk 0:00:00]} 53. Bd7 {[%clk 0:00:00]}  Kf2 {[%clk 0:00:00]} 54. Bf5 {[%clk 0:00:00]}  Kf3 {[%clk 0:00:00]} 55. Bd7 {[%clk 0:00:00]}  Ke2 {[%clk 0:00:00]} 56. Rxd2+ {[%clk 0:00:00]}  Bxd2 {[%clk 0:00:00]} 57. c5 {[%clk 0:00:00]}  bxc5 {[%clk 0:00:00]} 58. Bb5+ {[%clk 0:00:00]}  Ke3 {[%clk 0:00:00]} 59. Bc4 {[%clk 0:00:00]}  Bb4 {[%clk 0:00:00]} 60. Kb2 {[%clk 0:00:00]}  Re2+ {[%clk 0:00:00]} 61. Bxe2 {[%clk 0:00:00]}  Kxe2 {[%clk 0:00:00]} 62. Kc2 {[%clk 0:00:00]}  Ke3 {[%clk 0:00:00]} 63. Kd1 {[%clk 0:00:00]}  Kd3 {[%clk 0:00:00]} 64. Kc1 {[%clk 0:00:00]}  Kc3 {[%clk 0:00:00]} 65. Kb1 {[%clk 0:00:00]}  Kxb3 {[%clk 0:00:00]} 66. Ka1 {[%clk 0:00:00]}  c4 {[%clk 0:00:00]} 67. Kb1 {[%clk 0:00:00]}  c3 {[%clk 0:00:00]} 68. Ka1 {[%clk 0:00:00]}  Ba3 {[%clk 0:00:00]} 69. Kb1 {[%clk 0:00:00]}  c2+ {[%clk 0:00:00]} 70. Ka1 {[%clk 0:00:00]}  c1=Q# {[%clk 0:00:00]} 0-1


[Site "https://www.chess.com"]

[Event "Titled Tuesday Blitz August 16 Late 2022"]
[White "Sanchez, Robert"]
[Black "Zeynalov, Farid"]
[WhiteFideId "2034360"]
[BlackFideId "13402250"]
[WhiteElo "1966"]
[BlackElo "2278"]
[Result "0-1"]
[Round "05"]
[TimeControl "180+1"]
[Date "2022.08.18"]
[WhiteClock "0:00:00"]
[BlackClock "0:00:00"]

1. e4 {[%clk 0:00:00]}  e5 {[%clk 0:00:00]} 2. Nf3 {[%clk 0:00:00]}  Nf6 {[%clk 0:00:00]} 3. Nxe5 {[%clk 0:00:00]}  d6 {[%clk 0:00:00]} 4. Nf3 {[%clk 0:00:00]}  Nxe4 {[%clk 0:00:00]} 5. Nc3 {[%clk 0:00:00]}  Nf6 {[%clk 0:00:00]} 6. d4 {[%clk 0:00:00]}  Be7 {[%clk 0:00:00]} 7. Bd3 {[%clk 0:00:00]}  O-O {[%clk 0:00:00]} 8. h3 {[%clk 0:00:00]}  d5 {[%clk 0:00:00]} 9. O-O {[%clk 0:00:00]}  c6 {[%clk 0:00:00]} 10. Ne2 {[%clk 0:00:00]}  Nbd7 {[%clk 0:00:00]} 11. c3 {[%clk 0:00:00]}  Re8 {[%clk 0:00:00]} 12. Bf4 {[%clk 0:00:00]}  Nf8 {[%clk 0:00:00]} 13. Qc2 {[%clk 0:00:00]}  Ng6 {[%clk 0:00:00]} 14. Bh2 {[%clk 0:00:00]}  Bd6 {[%clk 0:00:00]} 15. Bxd6 {[%clk 0:00:00]}  Qxd6 {[%clk 0:00:00]} 16. Rfe1 {[%clk 0:00:00]}  Ne4 {[%clk 0:00:00]} 17. Ng3 {[%clk 0:00:00]}  f5 {[%clk 0:00:00]} 18. h4 {[%clk 0:00:00]}  Bd7 {[%clk 0:00:00]} 19. h5 {[%clk 0:00:00]}  Nf4 {[%clk 0:00:00]} 20. Ne5 {[%clk 0:00:00]}  Rf8 {[%clk 0:00:00]} 21. h6 {[%clk 0:00:00]}  g6 {[%clk 0:00:00]} 22. Bxe4 {[%clk 0:00:00]}  fxe4 {[%clk 0:00:00]} 23. Qb3 {[%clk 0:00:00]}  Nd3 {[%clk 0:00:00]} 24. Rxe4 {[%clk 0:00:00]}  Nxf2 {[%clk 0:00:00]} 25. Re2 {[%clk 0:00:00]}  Ng4 {[%clk 0:00:00]} 26. Qxb7 {[%clk 0:00:00]}  Nxe5 {[%clk 0:00:00]} 27. dxe5 {[%clk 0:00:00]}  Qc5+ {[%clk 0:00:00]} 28. Kh2 {[%clk 0:00:00]}  Rad8 {[%clk 0:00:00]} 29. e6 {[%clk 0:00:00]}  Rf4 {[%clk 0:00:00]} 30. Kh3 {[%clk 0:00:00]}  Qe7 {[%clk 0:00:00]} 31. Kh2 {[%clk 0:00:00]}  Qc5 {[%clk 0:00:00]} 32. Kh3 {[%clk 0:00:00]}  Rh4+ {[%clk 0:00:00]} 33. Kxh4 {[%clk 0:00:00]}  Qe7+ {[%clk 0:00:00]} 34. Kh3 {[%clk 0:00:00]}  Bxe6+ {[%clk 0:00:00]} 35. Rxe6 {[%clk 0:00:00]}  Qxb7 {[%clk 0:00:00]} 36. Rae1 {[%clk 0:00:00]}  Qf7 {[%clk 0:00:00]} 37. Re7 {[%clk 0:00:00]}  Qf4 {[%clk 0:00:00]} 38. Rg7+ {[%clk 0:00:00]}  Kh8 {[%clk 0:00:00]} 39. Ree7 {[%clk 0:00:00]}  Qxh6+ {[%clk 0:00:00]} 40. Kg4 {[%clk 0:00:00]}  Qxg7 {[%clk 0:00:00]} 41. Rxg7 {[%clk 0:00:00]}  Kxg7 {[%clk 0:00:00]} 0-1


[Site "https://www.chess.com"]